bitfinex-derivatives/quotes_ETHF0:USTF0_20240930
["timestamp","ask_amount","ask_price","bid_price","bid_amount"]
[1727721057764,3.34,2581.4,2581.3,0.38745]
[1727721058167,7.2136,2581.4,2581.3,0.38745]
[1727721058357,7.2136,2581.4,2580.7,0.96885]
[1727721058566,3.59527,2581.3,2580.8,0.96883]
[1727721058871,3.59527,2581.3,2581.2,0.38747]
[1727721059070,3.2078,2581.3,2581.1,0.38748]
[1727721059263,3.2078,2581.3,2581.2,0.38747]
[1727721059664,3.59525,2581.3,2581.2,0.38747]
[1727721060371,3.59525,2581.3,2580.6,0.6724]
[1727721060372,13.0822,2581.3,2580.6,0.6724]
[1727721060665,3.34,2580.7,2580.6,0.38756]
[1727721061762,3.34,2580.7,2580.5,0.38757]
[1727721061969,3.34,2580.7,2580.1,4.17689]
[1727721061970,0.38757,2580.6,2580.2,0.38762]
[1727721062157,0.38757,2580.6,2579.9,0.96914]
[1727721062158,6.5478,2580.7,2579.9,0.96914]
[1727721062364,6.5478,2580.4,2580.3,0.3876]
[1727721063767,0.38761,2580.3,2580.2,0.38761]
[1727721063965,3.34,2580.3,2580.2,0.38761]
[1727721064161,7.2152,2580.3,2580.2,0.38761]
[1727721064564,3.34,2580.3,2580.2,0.38761]
[1727721065158,4.33366372,2580.6,2580.5,0.38757]
[1727721065468,7.61798399,2581.1,2580.1,1.93819]
[1727721065469,3.2078,2581.0,2580.4,0.96898]
[1727721065672,1.97540319,2581.3,2581.2,0.38747]
[1727721065673,3.2078,2581.3,2581.2,0.38747]
[1727721066059,3.59526,2581.3,2581.2,0.38747]
[1727721066262,3.2078,2581.3,2581.2,0.38747]
[1727721066470,3.59525,2581.3,2581.2,0.38747]
[1727721066671,3.2078,2581.3,2580.7,0.96887]
[1727721066967,3.2078,2581.3,2581.1,0.38748]
[1727721066968,3.34,2581.2,2581.1,0.38748]
[1727721067670,3.34,2581.2,2581.0,0.38749]
[1727721067671,3.72748,2581.2,2581.0,0.38749]
[1727721067861,3.34,2581.2,2581.1,0.38748]
[1727721068060,3.72747,2581.2,2580.7,0.96887]
[1727721068264,3.34,2580.9,2580.6,0.6674]
[1727721068466,3.34,2580.9,2580.8,0.38753]
[1727721071770,5.21818614,2581.5,2581.0,0.96876]
[1727721071968,4.83075614,2581.5,2581.4,0.38744]
[1727721072163,3.34,2581.5,2581.4,0.38744]
[1727721074286,3.72743,2581.5,2581.3,0.38744]
[1727721074570,3.72743,2581.5,2581.1,0.6227]
[1727721074571,4.30858,2581.5,2581.1,0.38748]
[1727721074777,3.34,2581.2,2581.1,0.38748]
[1727721075363,3.34,2581.2,2581.0,0.38749]
[1727721075568,3.72747,2581.2,2580.7,1.59156]
[1727721075775,3.34,2581.2,2581.1,0.38748]
[1727721076472,3.2078,2581.3,2580.9,0.96879]
[1727721076688,4.83075614,2581.5,2581.4,0.38744]
[1727721076874,3.34,2581.5,2581.4,0.38744]
[1727721080370,3.34,2581.7,2581.3,0.96864]
[1727721080675,3.34,2581.7,2581.6,0.38741]
[1727721080869,5.34245614,2581.9,2581.8,0.38738]
[1727721080870,3.2078,2581.9,2581.8,0.38738]
[1727721081174,1.49075614,2582.1,2581.7,3.8736]
[1727721081378,3.34,2582.1,2581.4,1.3441]
[1727721081576,3.72734,2582.1,2581.8,0.38737]
[1727721081779,3.2078,2581.9,2581.4,1.3441]
[1727721082078,3.34,2581.7,2581.6,0.3874]
[1727721082575,3.34,2581.7,2581.5,0.38742]
[1727721083472,3.34,2581.7,2581.4,0.671]
[1727721083678,3.34,2581.7,2581.5,0.38742]
[1727721083883,3.34,2581.7,2581.6,0.38741]
[1727721087483,3.34,2581.7,2580.9,0.6375]
[1727721087484,13.60310551,2581.7,2580.4,1.00445625]
[1727721087683,13.60310551,2581.7,2580.2,0.38762]
[1727721087684,0.3876,2580.4,2580.2,0.38762]
[1727721087890,6.5478,2580.5,2580.4,0.38759]
[1727721088183,6.5478,2580.5,2580.0,1.96687241]
[1727721088184,6.93537,2580.5,2580.2,0.38761]
[1727721088384,6.93537,2580.5,2580.3,0.3876]
[1727721088385,8.03736916,2580.5,2580.3,0.3876]
[1727721088686,8.42495916,2580.5,2580.2,0.38762]
[1727721089089,8.03736916,2580.5,2580.3,0.3876]
[1727721089385,8.03736916,2580.5,2580.2,0.38761]
[1727721089386,8.42494916,2580.5,2580.2,0.38761]
[1727721089583,0.3876,2580.4,2580.1,0.38763]
[1727721090085,8.42495916,2580.5,2580.2,0.38762]
[1727721090285,6.93539,2580.5,2580.2,0.38762]
[1727721090678,0.38762,2580.2,2580.0,1.96687241]
[1727721090987,3.34,2580.1,2580.0,1.96687241]
[1727721091196,7.216,2580.1,2579.1,1.00445625]
[1727721091488,7.216,2580.1,2579.3,0.38776]
[1727721091489,3.2078,2579.4,2579.3,0.38776]
[1727721091686,3.2078,2579.4,2579.0,1.96949]
[1727721091687,3.34,2579.6,2579.0,1.0]
[1727721091991,3.2078,2579.5,2579.0,1.0]
[1727721092187,3.2078,2579.5,2579.3,0.38774]
[1727721092393,3.2078,2579.5,2579.2,0.38776]
[1727721092583,3.2078,2579.5,2579.0,1.0]
[1727721092781,3.2078,2579.5,2579.2,0.38776]
[1727721092983,3.2078,2579.5,2579.1,0.38779]
[1727721093180,3.2078,2579.2,2579.1,0.38777]
[1727721093382,3.2078,2579.2,2579.0,1.0]
[1727721093583,3.72779,2579.1,2579.0,1.0]
[1727721093783,3.72779,2579.1,2578.7,0.1]
[1727721093784,0.38783,2578.8,2578.7,0.1]
[1727721093985,0.38783,2578.8,2578.1,5.0343927]
[1727721093986,6.5478,2578.8,2578.1,1.8265927]
[1727721094185,6.5478,2578.2,2578.1,1.8265927]
[1727721094478,6.5478,2578.2,2577.3,3.2078]
[1727721094686,3.34,2577.7,2577.6,0.38801]
[1727721095096,7.2192,2577.7,2577.3,3.2078]
[1727721095388,3.2078,2577.9,2577.3,3.59586]
[1727721095389,3.34,2577.4,2577.3,3.59586]
[1727721095987,3.34,2577.6,2577.3,3.2078]
[1727721096183,3.34,2577.4,2577.0,3.2078]
[1727721096586,3.34,2577.4,2577.3,0.38806]
[1727721096788,3.34,2577.4,2576.7,3.2078]
[1727721096992,3.34,2577.1,2577.0,0.3881]
[1727721097195,3.34,2577.1,2576.7,3.2078]
[1727721097499,3.34,2577.1,2576.7,0.38814]
[1727721097686,3.34,2577.1,2576.0,3.2078]
[1727721097687,6.68,2576.8,2576.0,3.2078]
[1727721097881,3.34,2576.4,2576.0,0.38825]
[1727721098087,3.34,2576.9,2576.3,4.17831]
[1727721098292,3.34,2576.9,2575.5,5.33609785]
[1727721098293,6.5478,2576.4,2575.5,3.2078]
[1727721098593,1.684,2577.1,2575.5,3.2078]
[1727721098594,3.34,2576.6,2576.3,0.38821]
[1727721098787,3.34,2576.6,2576.2,0.97056]
[1727721098788,3.34,2576.6,2576.5,0.38818]
[1727721099287,3.34,2576.6,2576.5,4.26898]
[1727721099594,3.34,2576.6,2575.7,0.97073]
[1727721099595,6.9878,2576.6,2575.8,3.2078]
[1727721099786,0.97015,2577.3,2576.1,0.38824]
[1727721099787,3.78,2576.2,2576.1,0.38824]
[1727721100097,1.16415,2577.3,2576.9,0.38812]
[1727721100098,3.78,2577.0,2576.9,0.38812]
[1727721100486,3.2078,2577.2,2577.1,0.38809]
[1727721100995,3.2078,2577.2,2576.5,4.17822]
[1727721101290,3.2078,2577.2,2577.0,0.38809]
[1727721101497,3.2078,2577.2,2577.0,0.3881]
[1727721101792,4.26809,2577.1,2576.7,0.38815]
[1727721102095,3.2078,2576.8,2576.7,0.38815]
[1727721102293,3.2078,2577.2,2576.4,3.2078]
[1727721102493,3.2078,2577.2,2577.1,0.38808]
[1727721105094,3.2078,2577.2,2577.0,0.38809]
[1727721105292,3.2078,2577.2,2576.5,0.97045]
[1727721105596,3.2078,2576.9,2576.8,0.38813]
[1727721107402,6.9878,2576.9,2576.7,0.38814]
[1727721107702,6.9878,2576.9,2576.2,0.6472]
[1727721107703,3.8808,2576.8,2576.2,0.6472]
[1727721107998,6.9878,2576.9,2576.7,0.38814]
[1727721107999,6.7178,2576.9,2576.7,0.38814]
[1727721108297,6.7178,2576.9,2576.3,0.97052]
[1727721108494,6.7178,2576.9,2576.2,1.61776]
[1727721108888,6.7178,2576.9,2576.7,0.38815]
[1727721109094,3.8808,2576.8,2576.7,0.38815]
[1727721109699,3.8808,2576.8,2576.2,1.61776]
[1727721109906,3.2078,2576.6,2576.5,0.38818]
[1727721110198,6.9878,2576.6,2576.5,0.38818]
[1727721110394,10.8686,2576.6,2576.5,0.38818]
[1727721110593,3.2078,2576.6,2576.5,0.38818]
[1727721110798,3.2078,2576.6,2575.9,0.97064]
[1727721110799,10.8686,2576.6,2575.9,0.97064]
[1727721111000,3.78,2576.6,2576.4,0.38818]
[1727721111295,3.2078,2576.5,2576.4,0.38818]
[1727721111489,7.0894,2576.5,2576.4,0.38818]
[1727721111693,3.2078,2576.5,2576.4,0.38818]
[1727721112194,3.2078,2577.1,2576.8,1.35845]
[1727721112393,3.2078,2577.1,2577.0,0.3881]
[1727721113496,0.96999,2577.8,2577.0,0.3881]
[1727721113497,3.2078,2577.4,2577.3,0.38806]
[1727721113696,3.2078,2577.7,2577.6,0.38801]
[1727721114104,3.78,2577.9,2577.3,0.97013]
[1727721114105,3.78,2577.9,2577.8,0.38798]
[1727721114693,3.2078,2578.0,2577.5,0.97005]
[1727721114889,3.2078,2578.0,2577.9,0.38797]
[1727721115097,3.78,2578.3,2578.2,0.38792]
[1727721115098,3.2078,2578.3,2578.2,0.38792]
[1727721115598,3.78,2578.9,2578.7,0.38785]
[1727721115887,3.2078,2579.0,2578.9,0.38782]
[1727721116493,3.2078,2579.4,2579.3,0.38776]
[1727721116904,3.2078,2579.4,2579.3,4.26456]
[1727721117099,3.2078,2579.7,2579.6,0.38771]
[1727721118990,3.2078,2580.0,2579.3,0.96939]
[1727721119196,3.2078,2579.9,2579.8,0.38767]
[1727721119595,3.2078,2579.9,2579.8,0.38768]
[1727721120593,3.2078,2579.9,2579.7,0.38768]
[1727721120799,3.2078,2579.9,2579.8,0.38768]
[1727721121497,3.2078,2579.9,2579.7,0.38769]
[1727721121801,3.2078,2579.9,2579.3,1.757]
[1727721122004,3.2078,2579.9,2579.8,0.38768]
[1727721122707,3.2078,2579.9,2579.8,4.26368]
[1727721123099,3.2078,2580.2,2580.1,0.38763]
[1727721125407,0.38766,2580.0,2579.5,0.38771]
[1727721125709,0.38766,2580.0,2578.6,3.78]
[1727721125710,0.38773,2579.5,2579.1,0.38778]
[1727721126012,3.2078,2579.3,2579.2,0.38777]
[1727721126703,3.2078,2579.3,2579.2,4.26457]
[1727721127098,3.2078,2579.3,2579.2,0.38777]
[1727721127701,3.2078,2579.3,2578.7,0.38785]
[1727721127907,0.38782,2578.9,2578.4,0.6529]
[1727721128106,3.2078,2578.7,2578.5,0.38787]
[1727721128297,3.2078,2578.7,2578.0,2.3776]
[1727721128298,3.2078,2578.7,2578.6,0.38786]
[1727721128704,3.2078,2579.0,2578.2,0.96981]
[1727721128910,3.78,2579.2,2578.0,2.3776]
[1727721128911,3.2078,2578.7,2578.4,0.38788]
[1727721129105,3.2078,2578.7,2577.9,3.2078]
[1727721129106,0.38788,2578.5,2577.9,3.2078]
[1727721129406,3.2078,2578.3,2578.1,0.38792]
[1727721129802,3.2078,2578.3,2578.2,0.38792]
[1727721130005,3.2078,2578.3,2577.9,3.2078]
[1727721130006,3.2078,2578.7,2578.6,0.38786]
[1727721130808,3.78,2579.2,2578.7,0.38784]
[1727721130809,3.2078,2579.0,2578.7,0.38784]
[1727721131515,3.2078,2579.0,2578.1,1.35779]
[1727721131711,3.2078,2579.0,2578.1,0.96985]
[1727721132017,3.2078,2578.7,2578.6,0.38786]
[1727721132912,3.2078,2578.7,2577.9,4.9838]
[1727721133112,0.38784,2578.8,2578.4,0.38788]
[1727721133317,3.78,2578.9,2577.9,4.1777]
[1727721133318,3.2078,2578.5,2578.2,0.38791]
[1727721133615,3.2078,2578.5,2577.9,3.2078]
[1727721133616,3.59569,2578.5,2578.1,0.38793]
[1727721133812,3.2078,2578.5,2578.2,0.38791]
[1727721134408,3.2078,2578.5,2577.9,3.2078]
[1727721134615,3.2078,2578.5,2578.4,0.38789]
[1727721135417,3.2078,2578.8,2578.7,0.38785]
[1727721135916,3.59555,2579.4,2578.7,9.8776]
[1727721136115,3.2078,2579.4,2578.5,3.2078]
[1727721136318,3.2078,2579.4,2579.3,0.38776]
[1727721136526,3.2078,2579.4,2579.2,0.38777]
[1727721136726,3.59554,2579.4,2578.6,0.6315]
[1727721136928,3.2078,2579.1,2578.9,0.38781]
[1727721137120,3.2078,2579.1,2579.0,0.3878]
[1727721137318,3.2078,2579.1,2578.9,0.3878]
[1727721137525,3.2078,2579.1,2579.0,0.3878]
[1727721137723,3.2078,2579.1,2578.6,0.6315]
[1727721137933,3.2078,2579.1,2578.7,0.38785]
[1727721138124,3.2078,2579.1,2579.0,0.3878]
[1727721138734,3.2078,2579.4,2579.2,0.38776]
[1727721139526,3.2078,2579.4,2578.8,0.96956]
[1727721139736,3.2078,2579.4,2579.2,0.38776]
[1727721139937,3.2078,2579.4,2578.7,0.96962]
[1727721140138,3.2078,2579.1,2578.9,0.3878]
[1727721140638,3.2078,2579.1,2578.6,0.6315]
[1727721140932,3.2078,2579.4,2578.6,1.60114]
[1727721141134,3.2078,2579.4,2578.6,3.8393]
[1727721141334,3.2078,2579.7,2578.9,3.2078]
[1727721141530,3.2078,2579.7,2579.6,0.38771]
[1727721143534,3.2078,2579.7,2579.5,0.38772]
[1727721143732,3.2078,2579.7,2579.6,0.38771]
[1727721144332,3.2078,2580.0,2579.9,0.38767]
[1727721144728,3.73758,2580.5,2580.2,0.38762]
[1727721144729,3.2078,2580.3,2580.2,0.38762]
[1727721145638,3.2078,2580.6,2580.5,0.38757]
[1727721146633,3.2078,2580.6,2580.4,0.38758]
[1727721146834,3.2078,2580.6,2580.0,0.38765]
[1727721147035,3.2078,2580.3,2579.8,3.2078]
[1727721147432,3.2078,2580.3,2580.0,0.38764]
[1727721147730,3.2078,2580.3,2579.8,3.2078]
[1727721147936,3.2078,2580.3,2580.2,0.38762]
[1727721148229,3.2078,2580.6,2580.2,0.38762]
[1727721148430,3.35,2580.8,2579.8,3.2078]
[1727721148431,3.2078,2580.3,2579.8,3.2078]
[1727721148634,3.2078,2580.3,2580.2,0.38761]
[1727721148835,3.2078,2580.6,2580.2,0.38761]
[1727721149234,3.2078,2580.6,2579.8,3.2078]
[1727721149431,3.2078,2580.6,2580.4,0.38759]
[1727721149628,3.2078,2580.6,2579.9,0.96917]
[1727721149629,3.2078,2580.6,2580.5,0.38757]
[1727721150442,3.2078,2580.6,2580.5,4.26277]
[1727721150840,3.2078,2580.6,2580.5,10.26277]
[1727721151136,3.2078,2581.2,2581.1,0.38748]
[1727721151336,3.2078,2581.2,2580.6,0.96891]
[1727721151546,3.2078,2581.2,2581.1,0.38748]
[1727721152236,3.2078,2581.6,2581.1,3.8744]
[1727721152441,3.2078,2581.6,2580.8,0.96883]
[1727721152836,3.2078,2581.6,2581.3,0.38745]
[1727721153035,3.2078,2581.6,2581.3,0.38744]
[1727721153334,3.2078,2581.6,2580.8,2.74383]
[1727721153534,3.2078,2581.6,2581.0,0.96876]
[1727721153746,3.2078,2581.6,2581.5,0.38742]
[1727721154049,3.2078,2581.6,2581.3,0.38745]
[1727721154238,3.2078,2581.6,2581.4,0.38744]
[1727721154742,3.2078,2581.6,2580.8,0.96883]
[1727721154935,3.2078,2581.3,2581.2,0.38747]
[1727721155136,3.2078,2581.3,2580.8,0.38753]
[1727721155336,3.2078,2581.3,2580.6,1.775]
[1727721155531,3.2078,2581.3,2580.7,0.96887]
[1727721155737,3.2078,2581.3,2581.2,0.38747]
[1727721156038,3.2078,2581.3,2581.1,0.38747]
[1727721156239,3.2078,2581.3,2581.2,0.38747]
[1727721156441,3.2078,2581.3,2580.7,0.96887]
[1727721156639,3.2078,2581.3,2580.6,1.775]
[1727721156938,3.2078,2581.3,2581.2,0.38746]
[1727721157146,3.35,2581.7,2580.6,1.775]
[1727721157147,3.2078,2581.6,2580.6,1.775]
[1727721157443,3.2078,2581.6,2581.5,0.38742]
[1727721160937,3.2078,2581.6,2581.5,4.26102]
[1727721161138,3.2078,2581.6,2580.8,4.17663]
[1727721161342,0.38744,2581.5,2581.2,0.38746]
[1727721161538,3.2078,2581.3,2580.8,0.96883]
[1727721161745,3.2078,2581.3,2580.7,1.726]
[1727721161943,3.2078,2581.3,2581.2,0.38747]
[1727721162144,3.2078,2581.3,2580.9,0.38751]
[1727721162348,3.2078,2581.3,2581.2,0.38747]
[1727721162541,3.2078,2581.3,2581.1,0.38748]
[1727721162853,3.2078,2581.3,2581.2,0.38747]
[1727721163245,3.2078,2581.3,2580.6,0.6322]
[1727721163550,3.2078,2581.2,2581.1,0.38748]
[1727721163743,3.2078,2581.6,2580.8,0.96883]
[1727721163946,3.2078,2581.6,2581.5,0.38742]
[1727721164448,40.8,2581.8,2581.7,0.38739]
[1727721164648,3.2078,2581.9,2581.8,0.38738]
[1727721164852,3.2078,2581.9,2581.8,4.26018]
[1727721165057,3.2078,2581.9,2581.8,0.38738]
[1727721165346,3.2078,2581.9,2581.8,10.26018]
[1727721165748,3.2078,2582.3,2581.8,9.8728]
[1727721165947,3.2078,2582.3,2581.7,3.35]
[1727721165948,0.6847,2582.6,2582.0,3.2078]
[1727721166149,3.9025,2582.7,2582.1,2.3986]
[1727721166150,3.2078,2582.7,2582.1,2.3986]
[1727721166444,3.2078,2582.7,2582.6,0.38726]
[1727721166852,3.2078,2582.7,2582.1,1.3575]
[1727721167244,3.2078,2582.7,2582.6,0.38726]
[1727721167445,3.2078,2582.7,2582.1,1.3575]
[1727721167647,3.2078,2582.7,2582.6,0.38726]
[1727721167849,3.2078,2582.7,2582.1,1.3575]
[1727721167850,3.2078,2582.7,2582.4,0.38728]
[1727721168056,3.2078,2582.7,2582.1,1.3575]
[1727721168351,3.2078,2582.7,2582.6,0.38726]
[1727721168537,3.2078,2582.7,2582.1,1.3575]
[1727721168743,3.2078,2582.7,2582.6,0.38726]
[1727721168953,3.2078,2582.7,2582.3,0.3873]
[1727721169153,3.2078,2582.7,2582.5,0.38727]
[1727721169354,3.2078,2582.7,2582.6,0.38726]
[1727721170741,3.2078,2582.7,2582.2,0.38732]
[1727721170945,3.2078,2582.7,2582.3,0.3873]
[1727721171244,3.2078,2582.7,2582.1,1.3575]
[1727721171646,3.2078,2582.7,2582.2,0.38732]
[1727721171951,3.2078,2582.7,2581.7,4.31848]
[1727721171952,3.2078,2582.4,2581.7,3.2078]
[1727721172451,3.2078,2582.7,2582.4,0.38728]
[1727721172644,3.2078,2582.7,2581.9,0.96842]
[1727721172845,3.2078,2582.7,2581.8,4.31845]
[1727721173046,3.2078,2582.4,2581.8,3.35]
[1727721173247,3.2078,2582.4,2582.0,0.38734]
[1727721174154,3.2078,2582.4,2581.7,4.9338]
[1727721174353,3.2078,2582.4,2582.1,0.38733]
[1727721174862,3.2078,2582.4,2581.7,4.9338]
[1727721175059,3.2078,2582.4,2582.1,0.38733]
[1727721175254,3.59509,2582.4,2582.0,0.38734]
[1727721175451,3.2078,2582.4,2582.0,0.38734]
[1727721175960,3.8807,2582.4,2581.7,4.9338]
[1727721176163,3.8807,2582.4,2582.1,0.38733]
[1727721176657,0.38737,2581.9,2581.5,0.38742]
[1727721176855,3.2078,2582.0,2581.1,3.2078]
[1727721177053,3.2078,2581.7,2581.6,0.38741]
[1727721177559,3.2078,2582.0,2581.2,0.96866]
[1727721177756,3.2078,2582.0,2581.7,0.38739]
[1727721177955,3.59515,2582.0,2581.3,0.38745]
[1727721178256,3.2078,2582.0,2581.7,0.38739]
[1727721178563,3.59516,2582.0,2581.7,0.38739]
[1727721179154,3.2078,2582.0,2581.7,0.38739]
[1727721179656,3.2078,2582.0,2581.2,0.96866]
[1727721179856,3.2078,2582.0,2581.7,0.38739]
[1727721180259,3.2078,2582.0,2581.9,0.38736]
[1727721181360,3.8857,2582.3,2582.2,0.38732]
[1727721181768,3.2078,2582.3,2582.2,0.38732]
[1727721182360,3.2078,2582.3,2582.2,4.26012]
[1727721183150,3.2078,2582.6,2582.1,3.35]
[1727721183356,3.2078,2582.6,2582.5,0.38727]
[1727721183756,3.2078,2582.6,2582.5,4.25927]
[1727721184353,1.04218,2583.2,2582.5,9.872]
[1727721184354,3.8628,2583.2,2582.5,9.872]
[1727721184563,3.2078,2583.2,2582.7,0.38724]
[1727721184762,3.2078,2583.2,2583.0,0.38719]
[1727721184959,3.2078,2583.2,2582.9,0.38721]
[1727721185175,3.2078,2583.2,2582.7,0.38724]
[1727721185368,3.2078,2583.2,2582.8,0.38722]
[1727721186269,3.2078,2583.2,2582.6,1.3368]
[1727721186763,0.646,2583.4,2582.9,0.3872]
[1727721187066,3.2078,2583.2,2583.0,0.3872]
[1727721187269,3.2078,2583.2,2582.7,4.24387862]
[1727721187469,3.2078,2583.2,2583.0,0.3872]
[1727721188066,3.2078,2583.2,2583.1,0.38718]
[1727721188257,3.2078,2583.2,2582.6,1.3368]
[1727721188258,0.646,2583.4,2582.6,5.51272]
[1727721188462,0.646,2583.4,2582.6,4.5446]
[1727721188662,0.646,2583.4,2583.3,0.38715]
[1727721189463,3.2078,2583.5,2583.4,0.38714]
[1727721189672,0.6721,2584.0,2583.5,0.96782]
[1727721189861,0.6721,2584.0,2583.9,0.38706]
[1727721190067,0.6721,2584.0,2583.5,0.6599]
[1727721190263,0.6721,2584.0,2583.8,0.38708]
[1727721190464,3.2078,2583.9,2583.8,0.38708]
[1727721190776,3.2078,2583.9,2583.0,4.31798]
[1727721190972,3.2078,2583.9,2583.6,0.3871]
[1727721191370,3.2078,2583.9,2583.5,0.38712]
[1727721191568,3.2078,2583.9,2583.2,0.96793]
[1727721191873,3.2078,2583.9,2583.8,0.38708]
[1727721192264,3.2078,2584.2,2583.8,3.8704]
[1727721192570,3.2078,2584.2,2583.5,1.64352]
[1727721192874,3.2078,2584.2,2584.0,0.38705]
[1727721193569,3.2078,2584.2,2583.5,0.6757]
[1727721193771,3.2078,2584.2,2583.8,0.38707]
[1727721193970,3.2078,2584.2,2583.8,0.38708]
[1727721193971,3.2078,2583.9,2583.8,0.38708]
[1727721194165,3.59483,2584.2,2583.8,0.38708]
[1727721194571,3.2078,2584.2,2583.5,0.6757]
[1727721194871,3.2078,2584.2,2584.1,0.38704]
[1727721195265,3.2078,2584.2,2583.6,3.2078]
[1727721195464,3.2078,2584.2,2584.0,0.38704]
[1727721195672,3.2078,2584.2,2583.6,4.17555]
[1727721195975,3.2078,2584.2,2583.6,3.2078]
[1727721196174,3.2078,2584.2,2584.0,0.38704]
[1727721196375,3.2078,2584.2,2583.7,0.38709]
[1727721196675,3.2078,2584.2,2583.6,4.17556]
[1727721196979,3.2078,2584.2,2583.7,3.8704]
[1727721197171,3.2078,2584.2,2584.1,0.38704]
[1727721197568,3.2078,2584.2,2584.1,4.25664]
[1727721197870,0.6651,2584.6,2584.1,4.25664]
[1727721197871,3.8729,2584.6,2584.5,0.38698]
[1727721198372,3.2078,2584.6,2584.5,4.25578]
[1727721198584,1.01758,2585.2,2584.5,3.8688]
[1727721198773,0.6307,2585.2,2585.0,0.38689]
[1727721199171,0.6307,2585.2,2584.6,0.96739]
[1727721199373,0.6307,2585.2,2585.1,0.38689]
[1727721199782,0.6307,2585.2,2584.5,4.17523]
[1727721200075,0.6307,2585.2,2585.1,0.38689]
[1727721200472,0.6307,2585.2,2584.9,0.3869]
[1727721200673,3.2078,2585.0,2584.9,0.3869]
[1727721200871,3.2078,2585.0,2584.3,2.27219]
[1727721201071,3.2078,2585.0,2584.7,0.38694]
[1727721201270,3.2078,2585.0,2584.3,1.3047]
[1727721201473,3.2078,2585.0,2584.0,1.654]
[1727721201474,3.2078,2584.7,2584.0,1.654]
[1727721201679,3.2078,2584.7,2584.5,0.38697]
[1727721201974,3.2078,2584.7,2584.1,0.9676]
[1727721202185,3.2078,2585.0,2584.8,0.38692]
[1727721202369,3.2078,2585.0,2584.9,0.38692]
[1727721202569,3.2078,2585.0,2584.4,0.96747]
[1727721202570,3.2078,2585.0,2584.4,0.96748]
[1727721203077,3.2078,2585.0,2584.9,0.38692]
[1727721203674,0.6307,2585.2,2585.1,0.38689]
[1727721203875,3.2078,2585.4,2584.8,0.96732]
[1727721204073,3.2078,2585.4,2585.3,0.38686]
[1727721205481,3.2078,2585.4,2585.3,4.25486]
[1727721205792,3.2078,2585.4,2585.3,0.38686]
[1727721206781,3.2078,2585.4,2584.8,2.62132]
[1727721206978,3.2078,2585.4,2585.3,0.38686]
[1727721207282,3.2078,2585.4,2584.9,0.9673]
[1727721207484,3.2078,2585.4,2585.3,0.38686]
[1727721208278,3.2078,2585.4,2584.8,1.654]
[1727721208476,3.2078,2585.4,2585.2,0.38687]
[1727721208873,3.8471,2585.7,2585.2,0.38686]
[1727721209283,3.2078,2585.4,2584.8,2.62132]
[1727721209475,0.38683,2585.5,2584.6,3.2078]
[1727721209476,3.2078,2585.1,2585.0,0.38689]
[1727721209780,3.2078,2585.4,2584.5,0.6382]
[1727721209985,3.2078,2585.4,2584.6,4.17521]
[1727721209986,3.59465,2585.4,2584.6,4.17521]
[1727721210173,3.2078,2585.4,2584.6,3.2078]
[1727721210373,1.05556,2585.3,2585.0,0.3869]
[1727721210690,0.6687,2585.3,2585.1,0.38688]
[1727721210980,3.2078,2585.4,2584.9,0.96728]
[1727721211186,3.2078,2585.4,2585.3,0.38686]
[1727721211378,3.2078,2585.4,2584.9,4.17508]
[1727721211582,3.2078,2585.4,2584.9,0.96728]
[1727721211778,3.2078,2585.4,2585.3,0.38686]
[1727721211981,3.2078,2585.4,2584.9,0.96728]
[1727721212186,3.2078,2585.4,2585.3,0.38686]
[1727721212484,3.2078,2585.4,2585.2,0.38687]
[1727721213082,3.2078,2585.4,2585.1,0.38688]
[1727721213385,3.59465,2585.4,2585.1,0.38688]
[1727721213591,3.2078,2585.4,2584.5,3.21962]
[1727721213789,0.6859,2585.3,2585.0,0.3869]
[1727721213983,0.6859,2585.3,2585.1,0.38688]
[1727721214174,3.2078,2585.4,2585.2,0.38687]
[1727721214380,3.2078,2585.4,2584.5,2.2522]
[1727721214381,3.2078,2585.4,2585.3,0.38686]
[1727721214894,4.2339,2585.7,2585.0,0.96724]
[1727721215199,4.2339,2585.7,2585.4,0.38684]
[1727721215488,4.2339,2585.7,2584.6,3.35]
[1727721215489,0.38683,2585.5,2584.8,0.9673]
[1727721215690,0.38683,2585.5,2584.5,5.46]
[1727721215691,3.2078,2585.4,2585.1,0.38688]
[1727721215881,3.2078,2585.2,2585.0,0.38689]
[1727721216078,3.2078,2585.2,2584.5,0.6382]
[1727721216277,3.2078,2585.2,2584.2,23.84896]
[1727721216278,3.59475,2584.7,2584.3,0.387]
[1727721216487,0.6565,2584.6,2584.2,16.59756]
[1727721216785,0.6565,2584.6,2584.4,0.38698]
[1727721216987,1.04346,2584.6,2584.2,16.98457]
[1727721217179,3.2078,2584.4,2584.2,16.59756]
[1727721217384,3.2078,2584.4,2584.2,16.98457]
[1727721217592,3.2078,2584.4,2584.2,16.59756]
[1727721218489,3.2078,2584.4,2584.3,0.38701]
[1727721218991,3.2078,2584.5,2584.4,0.38699]
[1727721219188,3.2078,2584.5,2584.2,17.5651]
[1727721219189,3.2078,2584.9,2584.2,20.9151]
[1727721219490,3.2078,2584.9,2584.6,0.38695]
[1727721219684,3.59473,2584.9,2584.4,0.38698]
[1727721219878,3.2078,2584.6,2584.2,19.94756]
[1727721220077,3.2078,2584.6,2584.4,0.38698]